fUSD/lending_fUSD_20240919
["ID","MTS","AMOUNT","RATE_DAILY","PERIOD"]
[338537305,1726722659449,-572.57,0.00013273,2]
[338537306,1726722659459,-500.0,0.00013273,2]
[338537307,1726722659468,-500.0,0.00013273,2]
[338537308,1726722659477,-500.0,0.00013273,2]
[338537309,1726722659487,-500.0,0.00013273,2]
[338537310,1726722659497,-1066.58,0.00013273,2]
[338537311,1726722659507,-569.49791599,0.00013273,2]
[338537312,1726722659517,-2471.56,0.00013273,2]
[338537313,1726722659526,-2065.19580703,0.00013273,2]
[338537314,1726722659539,-282.72419297,0.00013273,2]
[338537315,1726722659549,-1809.3,0.00013273,2]
[338537316,1726722659559,-1003.54026165,0.00013273,2]
[338537317,1726722659570,-158.91973835,0.00013273,2]
[338537318,1726722659579,-500.0,0.00013273,2]
[338537319,1726722659589,-901.05,0.00013273,2]
[338537320,1726722659599,-500.0,0.00013273,2]
[338537321,1726722659608,-613.43143125,0.00013273,2]
[338537322,1726722659619,-541.91856875,0.00013273,2]
[338537323,1726722659629,-500.0,0.00013273,2]
[338537324,1726722659639,-22.78143125,0.00013273,2]
[338537325,1726722659651,-477.21856875,0.00013273,2]
[338537326,1726722659660,-70.62319552,0.00013273,2]
[338537327,1726722659672,-478.45546675,0.00013273,2]
[338537328,1726722659682,-831.23,0.00013273,2]
[338537329,1726722659691,-500.0,0.00013273,2]
[338537330,1726722659701,-57.57934096,0.00013273,2]
[338537331,1726722659712,-640.6149,0.00013273,2]
[338537332,1726722659723,-264.83575904,0.00013273,2]
[338537333,1726722659732,-591.39639176,0.00013273,2]
[338537334,1726722660976,250.0,0.00012586,2]
[338537335,1726722661245,342.23450411,0.00011264,2]
[338537336,1726722665211,500.0,0.00012687,2]
[338537337,1726722749517,500.0,0.00011264,2]
[338537338,1726722751106,500.0,0.00012634,2]
[338537339,1726722821233,13353.76,0.00012599,2]
[338537340,1726722849691,345.3,0.00010681,2]
[338537341,1726722886075,161.26,0.00012531,2]
[338537342,1726722932132,200.0,0.00012506,2]
[338537343,1726722989232,1050.0,0.00011,2]
[338537344,1726723141180,163.23,0.00010959,2]
[338537345,1726723161701,250.0,0.00012415,2]
[338537346,1726723197163,500.0,0.00012,2]
[338537347,1726723209616,500.0,0.00012,2]
[338537348,1726723218216,500.0,0.00012,2]
[338537349,1726723235328,250.0,0.00012406,2]
[338537350,1726723326935,500.0,0.00011264,2]
[338537351,1726723328524,500.0,0.00012634,2]
[338537352,1726723372660,341.62,0.00010455,2]
[338537353,1726723372826,341.62,0.00012719,2]
[338537354,1726723410392,700.0,0.00010168,2]
[338537355,1726723412192,700.0,0.00011538,2]
[338537356,1726723415325,161.26,0.0001235,2]
[338537357,1726723423218,840.0,0.00012318,2]
[338537358,1726723454486,257.93,0.00012316,2]
[338537359,1726723507347,500.0,0.00011264,2]
[338537360,1726723508952,500.0,0.00012634,2]
[338537361,1726723519664,7604.55583124,9e-05,2]
[338537362,1726723521501,150.0,0.00012329,2]
[338537384,1726723555343,5902.82437851,6.94e-05,2]
[338537385,1726723633061,200.0,0.000123,4]
[338537427,1726723635161,500.0,0.000124,4]
[338537428,1726723637823,800.0,0.000125,4]
[338537429,1726723639493,1100.0,0.000126,4]
[338537430,1726723641613,1400.0,0.000127,4]
[338537431,1726723678282,214.23269245,0.0001,2]
[338537432,1726723713675,7055.77326623,0.00010998,2]
[338537436,1726723753792,2000.0,8.22e-05,2]
[338537437,1726723754782,250.0,0.00012015,2]
[338537438,1726723755209,2000.0,9.59e-05,2]
[338537439,1726723756793,2000.0,0.0001096,2]
[338537440,1726723758399,2000.0,0.0001233,2]
[338537452,1726723831622,-220.401185,0.00012789,2]
[338537453,1726723831632,-234.12797872,0.00012797,2]
[338537454,1726723831642,-232.45410962,0.00012798,2]
[338537455,1726723831653,-67.14539038,0.00012798,2]
[338537456,1726723831663,-200.0,0.000128,4]
[338537457,1726723831672,-500.0,0.00012873,2]
[338537458,1726723831682,-150.0,0.00012879,2]
[338537459,1726723831691,-10404.13199685,0.0001288,2]
[338537460,1726723831742,-21483.10456073,0.0001288,2]
[338537461,1726723831754,-1055.69681033,0.0001288,2]
[338537462,1726723831765,-42174.02364068,0.0001288,2]
[338537463,1726723831818,-297.04785907,0.0001288,2]
[338537464,1726723831830,-790.15908962,0.0001288,2]
[338537465,1726723831843,-345.80403217,0.0001288,2]
[338537474,1726723838186,-421.27749924,0.0001288,2]
[338537475,1726723838197,-1306.63194,0.0001288,2]
[338537476,1726723838209,-584.25165594,0.0001288,2]
[338537477,1726723838220,-584.643,0.0001288,2]
[338537478,1726723838231,-59362.52481641,0.0001288,2]
[338537479,1726723838260,-424.95572707,0.0001288,2]
[338537481,1726723838328,-263.58033462,0.0001288,2]
[338537482,1726723838340,-468.50164004,0.0001288,2]
[338537483,1726723838351,-850.48302295,0.0001288,2]
[338537484,1726723838362,-1786.89851028,0.0001288,2]
[338537485,1726723838374,-880.16105896,0.0001288,2]
[338537486,1726723838386,-339.90205019,0.0001288,2]
[338537487,1726723838396,-113.4036509,0.0001288,2]
[338537488,1726723838407,-319.8,0.0001288,2]
[338537489,1726723838419,-622.21983407,0.0001288,2]
[338537490,1726723838430,-3088.10000001,0.0001288,2]
[338537491,1726723838449,-867.57638522,0.0001288,2]
[338537492,1726723838462,-5255.92241343,0.0001288,2]
[338537493,1726723838473,-345.0,0.0001288,2]
[338537494,1726723838485,-3161.98146989,0.0001288,2]
[338537495,1726723838498,-288.55661629,0.0001288,2]
[338537496,1726723838514,-1689.3857891,0.0001288,2]
[338537497,1726723838524,-152.34,0.00012887,2]
[338537498,1726723838535,-4588.35,0.00012895,2]
[338537499,1726723838549,-5848.8,0.00012895,2]
[338537500,1726723838558,-1136.91,0.00012895,2]
[338537501,1726723838568,-2181.75,0.00012895,2]
[338537502,1726723838577,-447.8980441,0.00012895,2]
[338537503,1726723838588,-563.31326908,0.00012895,2]
[338537504,1726723838600,-428.61941707,0.00012895,2]
[338537505,1726723838611,-824.51259311,0.00012895,2]
[338537506,1726723838623,-1249.01667664,0.00012895,2]
[338537507,1726723838632,-4683.58,0.00012895,2]
[338537508,1726723838641,-694.11,0.00012895,2]
[338537509,1726723838651,-2939.28,0.00012895,2]
[338537510,1726723838660,-3894.96,0.00012895,2]
[338537511,1726723838670,-10497.61,0.00012895,2]
[338537512,1726723838679,-500.0,0.00012895,2]
[338537513,1726723838689,-997.32,0.00012895,2]
[338537514,1726723838698,-500.0,0.00012895,2]
[338537515,1726723838708,-500.0,0.00012895,2]
[338537516,1726723838718,-4498.79,0.00012895,2]
[338537517,1726723838727,-6868.74,0.00012895,2]
[338537518,1726723838737,-2284.4,0.00012895,2]
[338537519,1726723838746,-1406.55,0.00012895,2]
[338537520,1726723838756,-526.09,0.00012895,2]
[338537521,1726723838765,-1562.84158177,0.00012895,2]
[338537522,1726723838785,-687.70841823,0.00012895,2]
[338537523,1726723838797,-971.95467213,0.00012895,2]
[338537524,1726723838810,-782.3353776,0.00012895,2]
[338537525,1726723838821,-1253.97995027,0.00012895,2]
[338537526,1726723838831,-943.6,0.00012895,2]
[338537527,1726723838842,-1803.65,0.00012895,2]
[338537528,1726723838854,-500.0,0.00012895,2]
[338537529,1726723838863,-562.55,0.00012895,2]
[338537530,1726723838873,-500.0,0.00012895,2]
[338537531,1726723838883,-1062.99,0.00012895,2]
[338537532,1726723838892,-1290.99,0.00012895,2]
[338537533,1726723838902,-500.0,0.00012895,2]
[338537534,1726723838911,-550.45,0.00012895,2]
[338537535,1726723838922,-1308.77,0.00012895,2]
[338537536,1726723838933,-500.0,0.00012895,2]
[338537537,1726723838942,-500.0,0.00012895,2]
[338537538,1726723838951,-293.70443138,0.00012895,2]
[338537539,1726723838960,-500.0,0.00012895,2]
[338537540,1726723838970,-500.0,0.00012895,2]
[338537541,1726723838979,-500.0,0.00012895,2]
[338537542,1726723838989,-500.0,0.00012895,2]
[338537543,1726723838998,-500.0,0.00012895,2]
[338537544,1726723839008,-500.0,0.00012896,2]
[338537545,1726723839017,-500.0,0.00012896,2]
[338537546,1726723839027,-500.0,0.00012896,2]
[338537547,1726723839037,-2245.79,0.00012896,2]
[338537548,1726723839051,-500.0,0.00012896,2]
[338537549,1726723839060,-558.11,0.00012896,2]
[338537550,1726723839070,-163.3154786,0.00012896,2]
[338537551,1726723839079,-2353.67,0.00012896,2]
[338537552,1726723839089,-844.57,0.00012896,2]
[338537553,1726723839098,-500.0,0.00012896,2]
[338537554,1726723839108,-690.96,0.00012896,2]
[338537555,1726723839118,-500.0,0.00012896,2]
[338537556,1726723839127,-500.0,0.00012896,2]
[338537557,1726723839136,-2361.89,0.00012896,2]
[338537558,1726723839146,-1677.52,0.00012896,2]
[338537559,1726723839155,-500.0,0.00012896,2]
[338537560,1726723839165,-809.34,0.00012896,2]
[338537561,1726723839175,-3839.63,0.00012896,2]
[338537562,1726723839185,-528.0,0.00012896,2]
[338537563,1726723839195,-1485.5,0.00012896,2]
[338537564,1726723839204,-1965.68,0.00012896,2]
[338537565,1726723839214,-500.0,0.00012896,2]
[338537566,1726723839223,-500.0,0.00012896,2]
[338537567,1726723839232,-1032.02,0.00012896,2]
[338537568,1726723839242,-709.28,0.00012896,2]
[338537569,1726723839251,-500.0,0.00012896,2]
[338537570,1726723839260,-499.95930871,0.00012896,2]
[338537571,1726723839270,-500.0,0.00012896,2]
[338537572,1726723839279,-1674.15,0.00012896,2]
[338537573,1726723839288,-594.46,0.00012896,2]
[338537574,1726723839298,-679.48,0.00012896,2]
[338537575,1726723839307,-500.0,0.00012896,2]
[338537576,1726723839317,-500.0,0.00012896,2]
[338537577,1726723839326,-500.0,0.00012896,2]
[338537578,1726723839336,-500.0,0.00012896,2]
[338537579,1726723839345,-500.0,0.00012896,2]
[338537580,1726723839354,-1209.97,0.00012896,2]
[338537581,1726723839363,-499.39,0.00012896,2]
[338537582,1726723839373,-500.0,0.00012896,2]
[338537583,1726723839382,-1469.4,0.00012896,2]
[338537584,1726723839392,-500.0,0.00012896,2]
[338537585,1726723839401,-1896.29,0.00012896,2]
[338537586,1726723839411,-500.0,0.00012896,2]
[338537587,1726723839420,-500.0,0.00012896,2]
[338537588,1726723839429,-500.0,0.00012896,2]
[338537589,1726723839439,-500.0,0.00012896,2]
[338537590,1726723839448,-1204.07,0.00012896,2]
[338537591,1726723839458,-500.0,0.00012896,2]
[338537593,1726723839467,-556.45,0.00012896,2]
[338537594,1726723839476,-1100.92,0.00012896,2]
[338537595,1726723839486,-500.0,0.00012896,2]
[338537596,1726723839496,-631.87168726,0.00012896,2]
[338537597,1726723839506,-1983.58,0.00012896,2]
[338537598,1726723839516,-500.0,0.00012896,2]
[338537599,1726723839526,-2969.58,0.00012896,2]
[338537601,1726723839536,-500.0,0.00012896,2]
[338537602,1726723839546,-500.0,0.00012896,2]
[338537604,1726723839556,-1524.48,0.00012896,2]
[338537605,1726723839566,-500.0,0.00012896,2]
[338537606,1726723839575,-572.57774661,0.00012896,2]
[338537607,1726723839585,-811.15,0.00012896,2]
[338537608,1726723839595,-500.0,0.00012896,2]
[338537609,1726723839604,-667.38,0.00012896,2]
[338537610,1726723839614,-4052.66,0.00012896,2]
[338537611,1726723839624,-3096.9,0.00012896,2]
[338537612,1726723839634,-500.0,0.00012896,2]
[338537613,1726723839644,-500.0,0.00012896,2]
[338537614,1726723839654,-500.0,0.00012896,2]
[338537615,1726723839664,-706.48,0.00012896,2]
[338537616,1726723839673,-1427.97,0.00012896,2]
[338537617,1726723839683,-1575.67,0.00012896,2]
[338537618,1726723839693,-2751.05,0.00012896,2]
[338537619,1726723839703,-500.0,0.00012896,2]
[338537620,1726723839713,-5113.28,0.00012896,2]
[338537621,1726723839724,-1495.63,0.00012896,2]
[338537622,1726723839734,-500.0,0.00012896,2]
[338537623,1726723839743,-6902.58,0.00012896,2]
[338537624,1726723839753,-500.0,0.00012896,2]
[338537625,1726723839763,-2034.37,0.00012896,2]
[338537626,1726723839772,-849.74,0.00012896,2]
[338537627,1726723839782,-500.0,0.00012896,2]
[338537628,1726723839793,-660.69,0.00012896,2]
[338537629,1726723839803,-1067.85,0.00012896,2]
[338537630,1726723839813,-672.23,0.00012896,2]
[338537631,1726723839823,-500.0,0.00012896,2]
[338537632,1726723839832,-500.0,0.00012896,2]
[338537633,1726723839842,-500.0,0.00012896,2]
[338537634,1726723839855,-500.0,0.00012896,2]
[338537635,1726723839865,-1296.03,0.00012896,2]
[338537636,1726723839875,-500.0,0.00012896,2]
[338537637,1726723839884,-500.0,0.00012896,2]
[338537638,1726723839896,-500.0,0.00012896,2]
[338537639,1726723839906,-500.0,0.00012896,2]
[338537640,1726723839915,-500.0,0.00012896,2]
[338537641,1726723839927,-551.54864993,0.00012896,2]
[338537642,1726723839938,-793.99,0.00012896,2]
[338537643,1726723839947,-500.0,0.00012896,2]
[338537644,1726723839957,-500.0,0.00012896,2]
[338537645,1726723839967,-500.0,0.00012896,2]
[338537646,1726723839976,-16425.94,0.00012896,2]
[338537647,1726723839986,-500.0,0.00012896,2]
[338537648,1726723839995,-3665.14,0.00012896,2]
[338537649,1726723840005,-501.47,0.00012896,2]
[338537650,1726723840014,-1353.1,0.00012896,2]
[338537652,1726723840024,-500.0,0.00012896,2]
[338537654,1726723840033,-500.0,0.00012896,2]
[338537656,1726723840042,-36322.06,0.00012896,2]
[338537658,1726723840052,-1575.13,0.00012896,2]
[338537660,1726723840061,-500.0,0.00012896,2]
[338537662,1726723840071,-534.45,0.00012896,2]
[338537664,1726723840080,-1802.13,0.00012896,2]
[338537665,1726723840090,-356.43788075,0.00012896,2]
[338537667,1726723840099,-500.0,0.00012896,2]
[338537669,1726723840109,-500.0,0.00012896,2]
[338537671,1726723840119,-500.0,0.00012896,2]
[338537673,1726723840128,-2625.03,0.00012896,2]
[338537675,1726723840138,-500.0,0.00012896,2]
[338537677,1726723840147,-500.0,0.00012896,2]
[338537679,1726723840156,-1371.27,0.00012896,2]
[338537681,1726723840165,-500.0,0.00012896,2]
[338537683,1726723840175,-500.0,0.00012896,2]
[338537685,1726723840184,-3931.85,0.00012896,2]
[338537687,1726723840194,-500.0,0.00012896,2]
[338537689,1726723840204,-500.0,0.00012896,2]
[338537691,1726723840214,-3250.2,0.00012896,2]
[338537693,1726723840223,-500.0,0.00012896,2]
[338537695,1726723840234,-523.92,0.00012896,2]
[338537697,1726723840243,-3800.72,0.00012896,2]
[338537700,1726723840254,-500.0,0.00012896,2]
[338537702,1726723840266,-8711.29,0.00012896,2]
[338537704,1726723840276,-1138.42,0.00012896,2]
[338537706,1726723840285,-611.77,0.00012896,2]
[338537708,1726723840296,-913.17,0.00012896,2]
[338537710,1726723840305,-574.57,0.00012896,2]
[338537712,1726723840315,-5379.79,0.00012896,2]
[338537714,1726723840324,-1161.26,0.00012896,2]
[338537716,1726723840333,-5373.22,0.00012896,2]
[338537718,1726723840344,-1848.34,0.00012896,2]
[338537720,1726723840354,-500.0,0.00012896,2]
[338537722,1726723840364,-3109.11,0.00012896,2]
[338537724,1726723840373,-3311.58,0.00012896,2]
[338537726,1726723840383,-500.0,0.00012896,2]
[338537734,1726723840459,-1921.88,0.00012896,2]
[338537736,1726723840468,-1458.53,0.00012896,2]
[338537738,1726723840478,-500.0,0.00012896,2]
[338537740,1726723840487,-2565.52,0.00012896,2]
[338537742,1726723840497,-3345.66,0.00012896,2]
[338537744,1726723840506,-2191.39,0.00012896,2]
[338537746,1726723840516,-500.0,0.00012896,2]
[338537748,1726723840525,-1879.78,0.00012896,2]
[338537750,1726723840535,-1966.71,0.00012896,2]
[338537752,1726723840545,-500.0,0.00012896,2]
[338537754,1726723840554,-3243.34,0.00012896,2]
[338537756,1726723840563,-1123.47,0.00012896,2]
[338537758,1726723840573,-631.08,0.00012896,2]
[338537761,1726723840582,-564.37,0.00012896,2]
[338537763,1726723840592,-4651.94,0.00012896,2]
[338537764,1726723840601,-1950.76,0.00012896,2]
[338537766,1726723840611,-1969.13,0.00012896,2]
[338537768,1726723840620,-900.88,0.00012896,2]
[338537771,1726723840630,-504.18,0.00012896,2]
[338537772,1726723840640,-2389.3,0.00012896,2]
[338537775,1726723840649,-500.0,0.00012896,2]
[338537776,1726723840658,-1000.0,0.00012896,2]
[338537778,1726723840668,-638.66,0.00012897,2]
[338537780,1726723840677,-268.21477197,0.00012897,2]
[338537783,1726723840687,-1426.93,0.00012897,2]
[338537784,1726723840697,-500.0,0.00012897,2]
[338537787,1726723840707,-500.0,0.00012897,2]
[338537789,1726723840716,-1300.89,0.00012897,2]
[338537791,1726723840725,-500.0,0.00012897,2]
[338537792,1726723840735,-500.0,0.00012897,2]
[338537794,1726723840744,-800.33,0.00012897,2]
[338537796,1726723840753,-933.6,0.00012897,2]
[338537798,1726723840763,-500.0,0.00012897,2]
[338537800,1726723840773,-500.0,0.00012897,2]
[338537802,1726723840782,-1053.2,0.00012897,2]
[338537804,1726723840791,-500.0,0.00012897,2]
[338537806,1726723840801,-1305.98,0.00012897,2]
[338537808,1726723840811,-1107.41,0.00012897,2]
[338537810,1726723840820,-500.0,0.00012897,2]
[338537812,1726723840829,-593.22,0.00012897,2]
[338537814,1726723840839,-506.95,0.00012897,2]
[338537817,1726723840852,-612.54,0.00012897,2]
[338537818,1726723840861,-555.82,0.00012897,2]
[338537820,1726723840871,-590.27,0.00012897,2]
[338537822,1726723840880,-680.77,0.00012897,2]
[338537825,1726723840891,-1879.17,0.00012897,2]
[338537827,1726723840900,-573.8,0.00012897,2]
[338537828,1726723840910,-500.0,0.00012897,2]
[338537830,1726723840922,-1566.22,0.00012897,2]
[338537832,1726723840932,-500.0,0.00012897,2]
[338537834,1726723840942,-946.63,0.00012897,2]
[338537836,1726723840951,-500.0,0.00012897,2]
[338537838,1726723840962,-950.5,0.00012897,2]
[338537840,1726723840972,-500.0,0.00012897,2]
[338537842,1726723840981,-500.0,0.00012897,2]
[338537844,1726723840990,-500.0,0.00012897,2]
[338537846,1726723840999,-785.35,0.00012897,2]
[338537848,1726723841008,-500.0,0.00012897,2]
[338537850,1726723841018,-500.0,0.00012897,2]
[338537852,1726723841027,-885.57,0.00012897,2]
[338537854,1726723841036,-500.0,0.00012897,2]
[338537856,1726723841047,-996.38,0.00012897,2]
[338537858,1726723841056,-500.0,0.00012897,2]
[338537860,1726723841065,-506.04,0.00012897,2]
[338537862,1726723841075,-1155.67,0.00012897,2]
[338537864,1726723841084,-500.0,0.00012897,2]
[338537866,1726723841093,-2050.18,0.00012897,2]
[338537868,1726723841103,-500.0,0.00012897,2]
[338537870,1726723841113,-500.0,0.00012897,2]
[338537872,1726723841123,-500.0,0.00012897,2]
[338537874,1726723841132,-500.0,0.00012897,2]
[338537876,1726723841142,-500.0,0.00012897,2]
[338537878,1726723841152,-1093.68,0.00012897,2]
[338537880,1726723841161,-500.0,0.00012897,2]
[338537882,1726723841171,-500.0,0.00012897,2]
[338537884,1726723841182,-500.0,0.00012897,2]
[338537886,1726723841194,-1616.69,0.00012897,2]
[338537888,1726723841204,-500.0,0.00012897,2]
[338537890,1726723841214,-500.0,0.00012897,2]
[338537892,1726723841223,-500.0,0.00012897,2]
[338537894,1726723841232,-500.0,0.00012897,2]
[338537896,1726723841241,-544.49,0.00012897,2]
[338537898,1726723841250,-725.83,0.00012897,2]
[338537900,1726723841259,-500.0,0.00012897,2]
[338537902,1726723841267,-697.2,0.00012897,2]
[338537904,1726723841277,-500.0,0.00012897,2]
[338537906,1726723841286,-565.86,0.00012897,2]
[338537908,1726723841296,-500.0,0.00012897,2]
[338537910,1726723841305,-500.0,0.00012897,2]
[338537912,1726723841314,-500.0,0.00012897,2]
[338537914,1726723841323,-945.94,0.00012897,2]
[338537916,1726723841333,-1539.19,0.00012897,2]
[338537918,1726723841342,-1816.97,0.00012897,2]
[338537920,1726723841352,-1248.0,0.00012897,2]
[338537922,1726723841361,-500.0,0.00012897,2]
[338537924,1726723841371,-500.0,0.00012897,2]
[338537926,1726723841380,-500.0,0.00012897,2]
[338537928,1726723841389,-500.0,0.00012897,2]
[338537930,1726723841398,-676.5,0.00012897,2]
[338537932,1726723841409,-500.0,0.00012897,2]
[338537934,1726723841418,-762.43,0.00012897,2]
[338537936,1726723841427,-500.0,0.00012897,2]
[338537938,1726723841436,-560.39,0.00012897,2]
[338537940,1726723841445,-500.0,0.00012897,2]
[338537942,1726723841454,-500.0,0.00012897,2]
[338537944,1726723841463,-608.62,0.00012897,2]
[338537946,1726723841472,-926.62,0.00012897,2]
[338537948,1726723841482,-500.0,0.00012897,2]
[338537950,1726723841491,-1874.55,0.00012897,2]
[338537952,1726723841501,-500.0,0.00012897,2]
[338537954,1726723841510,-2471.74,0.00012897,2]
[338537956,1726723841519,-500.0,0.00012897,2]
[338537958,1726723841528,-549.12,0.00012897,2]
[338537960,1726723841537,-500.0,0.00012897,2]
[338537961,1726723841548,-605.51,0.00012897,2]
[338537962,1726723841558,-500.0,0.00012897,2]
[338537964,1726723841567,-500.0,0.00012897,2]
[338537966,1726723841576,-377.18,0.00012897,2]
[338537968,1726723841585,-500.0,0.00012897,2]
[338537970,1726723841595,-2544.58,0.00012897,2]
[338537972,1726723841605,-500.0,0.00012897,2]
[338537974,1726723841616,-500.0,0.00012897,2]
[338537976,1726723841625,-500.0,0.00012897,2]
[338537978,1726723841635,-500.0,0.00012897,2]
[338537980,1726723841644,-1545.62,0.00012897,2]
[338537982,1726723841653,-500.0,0.00012897,2]
[338537984,1726723841664,-538.2,0.00012897,2]
[338537986,1726723841674,-500.0,0.00012897,2]
[338537988,1726723841683,-1044.27,0.00012897,2]
[338537990,1726723841692,-500.0,0.00012897,2]
[338537992,1726723841702,-500.0,0.00012897,2]
[338537994,1726723841712,-500.0,0.00012897,2]
[338537996,1726723841722,-765.68,0.00012897,2]
[338537998,1726723841731,-500.0,0.00012897,2]
[338538000,1726723841740,-500.0,0.00012897,2]
[338538002,1726723841750,-292.51881758,0.00012897,2]
[338538004,1726723841759,-500.0,0.00012897,2]
[338538006,1726723841769,-500.0,0.00012897,2]
[338538008,1726723841778,-1777.1,0.00012897,2]
[338538010,1726723841790,-500.0,0.00012897,2]
[338538012,1726723841799,-619.53,0.00012897,2]
[338538014,1726723841808,-621.39,0.00012897,2]
[338538016,1726723841817,-1332.45,0.00012897,2]
[338538018,1726723841827,-500.0,0.00012897,2]
[338538020,1726723841838,-1466.78,0.00012897,2]
[338538022,1726723841852,-500.0,0.00012897,2]
[338538024,1726723841861,-500.0,0.00012897,2]
[338538026,1726723841872,-500.0,0.00012897,2]
[338538029,1726723841883,-500.0,0.00012897,2]
[338538031,1726723841893,-500.0,0.00012897,2]
[338538033,1726723841902,-543.93,0.00012897,2]
[338538035,1726723841911,-500.0,0.00012897,2]
[338538036,1726723841921,-822.29,0.00012897,2]
[338538039,1726723841931,-732.08,0.00012897,2]
[338538041,1726723841941,-500.0,0.00012897,2]
[338538043,1726723841951,-500.0,0.00012897,2]
[338538045,1726723841961,-561.74462672,0.00012897,2]
[338538047,1726723841970,-500.0,0.00012897,2]
[338538049,1726723841980,-500.0,0.00012897,2]
[338538051,1726723841989,-500.0,0.00012897,2]
[338538053,1726723841998,-500.0,0.00012897,2]
[338538055,1726723842007,-500.0,0.00012897,2]
[338538057,1726723842017,-604.58,0.00012897,2]
[338538059,1726723842028,-923.94,0.00012897,2]
[338538060,1726723842038,-958.97,0.00012897,2]
[338538061,1726723842057,-1461.4,0.00012897,2]
[338538062,1726723842067,-1417.71,0.00012897,2]
[338538063,1726723842076,-500.0,0.00012897,2]
[338538064,1726723842085,-500.0,0.00012897,2]
[338538065,1726723842094,-954.54,0.00012897,2]
[338538066,1726723842103,-1816.87,0.00012897,2]
[338538067,1726723842112,-500.0,0.00012897,2]
[338538068,1726723842120,-500.0,0.00012897,2]
[338538069,1726723842130,-500.0,0.00012897,2]
[338538070,1726723842139,-1036.25,0.00012897,2]
[338538071,1726723842148,-1922.36,0.00012897,2]
[338538072,1726723842157,-500.0,0.00012897,2]
[338538073,1726723842166,-500.0,0.00012897,2]
[338538074,1726723842175,-519.57,0.00012897,2]
[338538075,1726723842184,-873.57,0.00012897,2]
[338538076,1726723842196,-500.0,0.00012897,2]
[338538077,1726723842206,-500.0,0.00012897,2]
[338538078,1726723842216,-543.01,0.00012897,2]
[338538079,1726723842225,-896.64,0.00012897,2]
[338538080,1726723842235,-334.53,0.00012897,2]
[338538081,1726723842244,-500.0,0.00012897,2]
[338538082,1726723842255,-1957.53,0.00012897,2]
[338538083,1726723842264,-500.0,0.00012897,2]
[338538084,1726723842274,-327.4,0.00012897,2]
[338538085,1726723842283,-1310.49,0.00012897,2]
[338538086,1726723842295,-689.3,0.00012897,2]
[338538087,1726723842304,-500.0,0.00012897,2]
[338538088,1726723842315,-500.0,0.00012897,2]
[338538089,1726723842325,-789.98,0.00012897,2]
[338538090,1726723842334,-500.0,0.00012897,2]
[338538091,1726723842344,-500.0,0.00012897,2]
[338538092,1726723842354,-1058.36,0.00012897,2]
[338538093,1726723842363,-500.0,0.00012897,2]
[338538094,1726723842373,-500.0,0.00012897,2]
[338538095,1726723842382,-1258.37,0.00012897,2]
[338538096,1726723842391,-187.29,0.00012897,2]
[338538097,1726723842400,-826.1,0.00012897,2]
[338538098,1726723842410,-500.0,0.00012897,2]
[338538099,1726723842419,-500.0,0.00012897,2]